Workbook

Sheet Agent Commissions Calculator
A1: 2024 Agent Commission Calculator
A4: Writing Agent Calculator
A6: Step 1: Select the state for the Beneficiary | B6: Alabama | D6: =VLOOKUP(B6,'2024 Rates'!$A$4:$B$42,2,FALSE) -> AL
A8: Step 2: Select the effective month of the Beneficiary | C8: January | D8: =IF(C8="December",1,IF(C8="November",2,IF(C8="October",3,IF(C8="September",4,IF(C8="August",5,IF(C8="July",6,IF(C8="June",7,IF(C8="May",8,IF(C8="April",9,IF(C8="March",10,IF(C8="February",11,12))))))))))) -> 12
A11: Writing Agent Commissions | G11: Broker Level
B12: Segment | C12: Initial Payment | D12: True-Up Payment | E12: Total Initial Payout | G12: Monthly Renewal Payment
A13: New to Medicare/New to Wellcare Prior Plan Type = NONE + Cycle Year 1 per CMS Beneficiary is in the initial year from an "unlike" plan | B13: CCP | C13: =IF(D6="PDP",0,((VLOOKUP($D$6,'2024 Rates'!$B$4:$J$42,3,FALSE)/12)*$D$8)) -> 306 | D13: =IF(D6="PDP",0,((VLOOKUP($D$6,'2024 Rates'!$B$4:$J$42,2,FALSE)-C13))) -> 305 | E13: =SUM(C13:D13) -> 611 | G13: =IF(D6="PDP",0,((VLOOKUP($D$6,'2024 Rates'!$B$4:$J$42,3,FALSE)/12))) -> 25.5
B14: PDP | C14: =(VLOOKUP("PDP",'2024 Rates'!$B$4:$J$42,3,FALSE)/12)*$D$8 -> 50 | D14: =(VLOOKUP("PDP",'2024 Rates'!$B$4:$J$42,2,FALSE)-C14) -> 50 | E14: =SUM(C14:D14) -> 100 | G14: =(VLOOKUP("PDP",'2024 Rates'!$B$4:$J$42,3,FALSE)/12) -> 4.166666667
A16: Already in Medicare/New to Wellcare Prior Plan Type = MA/MAPD or PDP + Cycle Year 1 per CMS Beneficiary is in the initial year from a "Like plan type" | B16: CCP | C16: =IF($D$6="PDP",0,((VLOOKUP($D$6,'2024 Rates'!$B$4:$J$42,3,FALSE)/12)*$D$8)) -> 306 | D16: =E16-C16 -> 305 | E16: =(E13/12)*D8 -> 611 | G16: =G13 -> 25.5
B17: PDP | C17: =(VLOOKUP("PDP",'2024 Rates'!$B$4:$J$42,3,FALSE)/12)*$D$8 -> 50 | D17: =C17-0 -> 50 | E17: =(E14/12)*D8 -> 100 | G17: =G14 -> 4.166666667
A19: Already in Medicare/New to Wellcare Prior Plan Type = MA/MAPD or PDP + Cycle Year >1 per CMS Beneficiary is in the initial year from a "Like plan type" | B19: CCP | C19: =IF($D$6="PDP",0,((VLOOKUP($D$6,'2024 Rates'!$B$4:$J$42,3,FALSE)/12)*$D$8)) -> 306 | D19: =IF(C19=0,0,0) -> 0 | E19: =SUM(C19:D19) -> 306 | G19: =G13 -> 25.5
B20: PDP | C20: =(VLOOKUP("PDP",'2024 Rates'!$B$4:$J$42,3,FALSE)/12)*$D$8 -> 50 | D20: 0 | E20: =SUM(C20:D20) -> 50 | G20: =G14 -> 4.166666667
A22: Already in Medicare/Already in Wellcare Prior Plan Type = plan transfer Beneficiary is changing from one MA plan to another plan where Original Effective Date is prior to 2023. | B22: CCP | C22: 0 | D22: =IF(C22=0,0,0) -> 0 | E22: =SUM(C22:D22) -> 0 | G22: =G13 -> 25.5
B23: PDP | C23: 0 | D23: 0 | E23: 0 | G23: =G14 -> 4.166666667

Sheet 2024 Rates (hidden)
B1: 1 | C1: 2 | D1: 3 | E1: 4 | F1: 5 | G1: 6 | H1: 7 | I1: 8 | J1: 9 | K1: 10 | L1: 11 | M1: 12 | N1: 13 | O1: 14 | P1: 15 | Q1: 16 | R1: 17 | S1: 18
C2: Agent | E2: GA | F2: MGA | G2: SGA | H2: FMO | I2: NMO | J2: GA | K2: MGA | L2: SGA | M2: FMO | N2: NMO | O2: GA | P2: MGA | Q2: SGA | R2: FMO | S2: NMO
A3: State | B3: Abrev | C3: New to MA | D3: Renewal Payment | E3: First Payment | F3: First Payment | G3: First Payment | H3: First Payment | I3: First Payment | J3: 1st Renewal Pymt | K3: 1st Renewal Pymt | L3: 1st Renewal Pymt | M3: 1st Renewal Pymt | N3: 1st Renewal Pymt | O3: 2+ Renewal Pymt | P3: 2+ Renewal Pymt | Q3: 2+ Renewal Pymt | R3: 2+ Renewal Pymt | S3: 2+ Renewal Pymt | U3: 1st Renewal Total | V3: Lifetime Renewal Total
A4: PDP | B4: PDP | C4: 100 | D4: 50 | E4: 3 | F4: 3 | G4: 3 | H4: 6 | I4: 1 | J4: 1.4 | K4: 1.4 | L4: 1.4 | M4: 2.8 | N4: 1 | O4: 1.4 | P4: 1.4 | Q4: 1.4 | R4: 2.8 | S4: 0.5 | U4: =SUM(J4:N4) -> 8 | V4: =SUM(O4:S4) -> 7.5
A5: Alabama | B5: AL | C5: 611 | D5: 306 | E5: 50 | F5: 50 | G5: 50 | H5: 50 | I5: 50 | J5: 50 | K5: 50 | L5: 50 | M5: 50 | N5: 50 | O5: 25 | P5: 25 | Q5: 25 | R5: 25 | S5: 25 | U5: =SUM(J5:N5) -> 250 | V5: =SUM(O5:S5) -> 125
A6: Arizona | B6: AZ | C6: 611 | D6: 306 | E6: 50 | F6: 50 | G6: 50 | H6: 50 | I6: 50 | J6: 50 | K6: 50 | L6: 50 | M6: 50 | N6: 50 | O6: 25 | P6: 25 | Q6: 25 | R6: 25 | S6: 25 | U6: 250 | V6: 125
A7: Arkansas | B7: AR | C7: 611 | D7: 306 | E7: 50 | F7: 50 | G7: 50 | H7: 50 | I7: 50 | J7: 50 | K7: 50 | L7: 50 | M7: 50 | N7: 50 | O7: 25 | P7: 25 | Q7: 25 | R7: 25 | S7: 25 | U7: 250 | V7: 125
A8: California | B8: CA | C8: 762 | D8: 381 | E8: 50 | F8: 50 | G8: 60 | H8: 70 | I8: 70 | J8: 50 | K8: 50 | L8: 60 | M8: 70 | N8: 70 | O8: 25 | P8: 25 | Q8: 30 | R8: 35 | S8: 35 | U8: 300 | V8: 150
A9: Connecticut | B9: CT | C9: 689 | D9: 345 | E9: 50 | F9: 50 | G9: 50 | H9: 50 | I9: 50 | J9: 50 | K9: 50 | L9: 50 | M9: 50 | N9: 50 | O9: 25 | P9: 25 | Q9: 25 | R9: 25 | S9: 25 | U9: 250 | V9: 125
A10: District of Columbia | B10: DC | C10: 689 | D10: 345 | E10: 50 | F10: 50 | G10: 50 | H10: 50 | I10: 50 | J10: 50 | K10: 50 | L10: 50 | M10: 50 | N10: 50 | O10: 25 | P10: 25 | Q10: 25 | R10: 25 | S10: 25 | U10: 250 | V10: 125
A11: Delaware | B11: DE | C11: 611 | D11: 306 | E11: 50 | F11: 50 | G11: 50 | H11: 50 | I11: 50 | J11: 50 | K11: 50 | L11: 50 | M11: 50 | N11: 50 | O11: 25 | P11: 25 | Q11: 25 | R11: 25 | S11: 25 | U11: 250 | V11: 125
A12: Florida | B12: FL | C12: 611 | D12: 306 | E12: 50 | F12: 50 | G12: 50 | H12: 50 | I12: 50 | J12: 50 | K12: 50 | L12: 50 | M12: 50 | N12: 50 | O12: 25 | P12: 25 | Q12: 25 | R12: 25 | S12: 25 | U12: 250 | V12: 125
A13: Georgia | B13: GA | C13: 611 | D13: 306 | E13: 50 | F13: 50 | G13: 50 | H13: 50 | I13: 50 | J13: 50 | K13: 50 | L13: 50 | M13: 50 | N13: 50 | O13: 25 | P13: 25 | Q13: 25 | R13: 25 | S13: 25 | U13: 250 | V13: 125
A14: Hawaii | B14: HI | C14: 611 | D14: 306 | E14: 50 | F14: 50 | G14: 50 | H14: 50 | I14: 50 | J14: 50 | K14: 50 | L14: 50 | M14: 50 | N14: 50 | O14: 25 | P14: 25 | Q14: 25 | R14: 25 | S14: 25 | U14: 250 | V14: 125
A15: Illinois | B15: IL | C15: 611 | D15: 306 | E15: 50 | F15: 50 | G15: 50 | H15: 50 | I15: 50 | J15: 50 | K15: 50 | L15: 50 | M15: 50 | N15: 50 | O15: 25 | P15: 25 | Q15: 25 | R15: 25 | S15: 25 | U15: 250 | V15: 125
A16: Indiana | B16: IN | C16: 611 | D16: 306 | E16: 50 | F16: 50 | G16: 50 | H16: 50 | I16: 50 | J16: 50 | K16: 50 | L16: 50 | M16: 50 | N16: 50 | O16: 25 | P16: 25 | Q16: 25 | R16: 25 | S16: 25 | U16: 250 | V16: 125
A17: Kansas | B17: KS | C17: 611 | D17: 306 | E17: 50 | F17: 50 | G17: 50 | H17: 50 | I17: 50 | J17: 50 | K17: 50 | L17: 50 | M17: 50 | N17: 50 | O17: 25 | P17: 25 | Q17: 25 | R17: 25 | S17: 25 | U17: 250 | V17: 125
A18: Kentucky | B18: KY | C18: 611 | D18: 306 | E18: 50 | F18: 50 | G18: 50 | H18: 50 | I18: 50 | J18: 50 | K18: 50 | L18: 50 | M18: 50 | N18: 50 | O18: 25 | P18: 25 | Q18: 25 | R18: 25 | S18: 25 | U18: 250 | V18: 125
A19: Louisiana | B19: LA | C19: 611 | D19: 306 | E19: 50 | F19: 50 | G19: 50 | H19: 50 | I19: 50 | J19: 50 | K19: 50 | L19: 50 | M19: 50 | N19: 50 | O19: 25 | P19: 25 | Q19: 25 | R19: 25 | S19: 25 | U19: 250 | V19: 125
A20: Massachusetts | B20: MA | C20: 611 | D20: 306 | E20: 50 | F20: 50 | G20: 50 | H20: 50 | I20: 50 | J20: 50 | K20: 50 | L20: 50 | M20: 50 | N20: 50 | O20: 25 | P20: 25 | Q20: 25 | R20: 25 | S20: 25 | U20: 250 | V20: 125
A21: Maine | B21: ME | C21: 611 | D21: 306 | E21: 50 | F21: 50 | G21: 50 | H21: 50 | I21: 50 | J21: 50 | K21: 50 | L21: 50 | M21: 50 | N21: 50 | O21: 25 | P21: 25 | Q21: 25 | R21: 25 | S21: 25 | U21: 250 | V21: 125
A22: Michigan | B22: MI | C22: 611 | D22: 306 | E22: 50 | F22: 50 | G22: 50 | H22: 50 | I22: 50 | J22: 50 | K22: 50 | L22: 50 | M22: 50 | N22: 50 | O22: 25 | P22: 25 | Q22: 25 | R22: 25 | S22: 25 | U22: 250 | V22: 125
A23: Mississippi | B23: MS | C23: 611 | D23: 306 | E23: 50 | F23: 50 | G23: 50 | H23: 50 | I23: 50 | J23: 50 | K23: 50 | L23: 50 | M23: 50 | N23: 50 | O23: 25 | P23: 25 | Q23: 25 | R23: 25 | S23: 25 | U23: 250 | V23: 125
A24: Missouri | B24: MO | C24: 611 | D24: 306 | E24: 50 | F24: 50 | G24: 50 | H24: 50 | I24: 50 | J24: 50 | K24: 50 | L24: 50 | M24: 50 | N24: 50 | O24: 25 | P24: 25 | Q24: 25 | R24: 25 | S24: 25 | U24: 250 | V24: 125
A25: Nebraska | B25: NE | C25: 611 | D25: 306 | E25: 50 | F25: 50 | G25: 50 | H25: 50 | I25: 50 | J25: 50 | K25: 50 | L25: 50 | M25: 50 | N25: 50 | O25: 25 | P25: 25 | Q25: 25 | R25: 25 | S25: 25 | U25: 250 | V25: 125
A26: Nevada | B26: NV | C26: 611 | D26: 306 | E26: 50 | F26: 50 | G26: 50 | H26: 50 | I26: 50 | J26: 50 | K26: 50 | L26: 50 | M26: 50 | N26: 50 | O26: 25 | P26: 25 | Q26: 25 | R26: 25 | S26: 25 | U26: 250 | V26: 125
A27: New Hampshire | B27: NH | C27: 611 | D27: 306 | E27: 50 | F27: 50 | G27: 50 | H27: 50 | I27: 50 | J27: 50 | K27: 50 | L27: 50 | M27: 50 | N27: 50 | O27: 25 | P27: 25 | Q27: 25 | R27: 25 | S27: 25 | U27: 250 | V27: 125
A28: New Jersey | B28: NJ | C28: 762 | D28: 381 | E28: 50 | F28: 50 | G28: 50 | H28: 50 | I28: 50 | J28: 50 | K28: 50 | L28: 50 | M28: 50 | N28: 50 | O28: 25 | P28: 25 | Q28: 25 | R28: 25 | S28: 25 | U28: 250 | V28: 125
A29: New Mexico | B29: NM | C29: 611 | D29: 306 | E29: 50 | F29: 50 | G29: 50 | H29: 50 | I29: 50 | J29: 50 | K29: 50 | L29: 50 | M29: 50 | N29: 50 | O29: 25 | P29: 25 | Q29: 25 | R29: 25 | S29: 25 | U29: 250 | V29: 125
A30: New York | B30: NY | C30: 611 | D30: 306 | E30: 50 | F30: 50 | G30: 50 | H30: 50 | I30: 50 | J30: 50 | K30: 50 | L30: 50 | M30: 50 | N30: 50 | O30: 25 | P30: 25 | Q30: 25 | R30: 25 | S30: 25 | U30: 250 | V30: 125
A31: North Carolina | B31: NC | C31: 611 | D31: 306 | E31: 50 | F31: 50 | G31: 50 | H31: 50 | I31: 50 | J31: 50 | K31: 50 | L31: 50 | M31: 50 | N31: 50 | O31: 25 | P31: 25 | Q31: 25 | R31: 25 | S31: 25 | U31: 250 | V31: 125
A32: Ohio | B32: OH | C32: 611 | D32: 306 | E32: 50 | F32: 50 | G32: 50 | H32: 50 | I32: 50 | J32: 50 | K32: 50 | L32: 50 | M32: 50 | N32: 50 | O32: 25 | P32: 25 | Q32: 25 | R32: 25 | S32: 25 | U32: 250 | V32: 125
A33: Oklahoma | B33: OK | C33: 611 | D33: 306 | E33: 50 | F33: 50 | G33: 50 | H33: 50 | I33: 50 | J33: 50 | K33: 50 | L33: 50 | M33: 50 | N33: 50 | O33: 25 | P33: 25 | Q33: 25 | R33: 25 | S33: 25 | U33: 250 | V33: 125
A34: Oregon | B34: OR | C34: 611 | D34: 306 | E34: 50 | F34: 50 | G34: 50 | H34: 50 | I34: 50 | J34: 50 | K34: 50 | L34: 50 | M34: 50 | N34: 50 | O34: 25 | P34: 25 | Q34: 25 | R34: 25 | S34: 25 | U34: 250 | V34: 125
A35: Pennsylvania | B35: PA | C35: 689 | D35: 345 | E35: 50 | F35: 50 | G35: 50 | H35: 50 | I35: 50 | J35: 50 | K35: 50 | L35: 50 | M35: 50 | N35: 50 | O35: 25 | P35: 25 | Q35: 25 | R35: 25 | S35: 25 | U35: 250 | V35: 125
A36: Rhode Island | B36: RI | C36: 611 | D36: 306 | E36: 50 | F36: 50 | G36: 50 | H36: 50 | I36: 50 | J36: 50 | K36: 50 | L36: 50 | M36: 50 | N36: 50 | O36: 25 | P36: 25 | Q36: 25 | R36: 25 | S36: 25 | U36: 250 | V36: 125
A37: South Carolina | B37: SC | C37: 611 | D37: 306 | E37: 50 | F37: 50 | G37: 50 | H37: 50 | I37: 50 | J37: 50 | K37: 50 | L37: 50 | M37: 50 | N37: 50 | O37: 25 | P37: 25 | Q37: 25 | R37: 25 | S37: 25 | U37: 250 | V37: 125
A38: Tennessee | B38: TN | C38: 611 | D38: 306 | E38: 50 | F38: 50 | G38: 50 | H38: 50 | I38: 50 | J38: 50 | K38: 50 | L38: 50 | M38: 50 | N38: 50 | O38: 25 | P38: 25 | Q38: 25 | R38: 25 | S38: 25 | U38: 250 | V38: 125
A39: Texas | B39: TX | C39: 611 | D39: 306 | E39: 50 | F39: 50 | G39: 50 | H39: 50 | I39: 50 | J39: 50 | K39: 50 | L39: 50 | M39: 50 | N39: 50 | O39: 25 | P39: 25 | Q39: 25 | R39: 25 | S39: 25 | U39: 250 | V39: 125
A40: Vermont | B40: VT | C40: 611 | D40: 306 | E40: 50 | F40: 50 | G40: 50 | H40: 50 | I40: 50 | J40: 50 | K40: 50 | L40: 50 | M40: 50 | N40: 50 | O40: 25 | P40: 25 | Q40: 25 | R40: 25 | S40: 25 | U40: 250 | V40: 125
A41: Washington | B41: WA | C41: 611 | D41: 306 | E41: 50 | F41: 50 | G41: 50 | H41: 50 | I41: 50 | J41: 50 | K41: 50 | L41: 50 | M41: 50 | N41: 50 | O41: 25 | P41: 25 | Q41: 25 | R41: 25 | S41: 25 | U41: 250 | V41: 125
A42: Wisconsin | B42: WI | C42: 611 | D42: 306 | E42: 50 | F42: 50 | G42: 50 | H42: 50 | I42: 50 | J42: 50 | K42: 50 | L42: 50 | M42: 50 | N42: 50 | O42: 25 | P42: 25 | Q42: 25 | R42: 25 | S42: 25 | U42: 250 | V42: 125
